[Event "2026 Biel Blitz Open"]
[Site "Biel, CH"]
[Date "2026.07.19"]
[Round "9"]
[White "Coban, Ege"]
[Black "Stefan, Romulus-Cristian"]
[Result "1-0"]
[Board "26"]
[TimeControl "180+2"]
[WhiteFideId "26320304"]
[BlackFideId "1232835"]
[WhiteElo "1936"]
[BlackElo "2048"]
[BlackTitle "CM"]
[WhiteClock "0:00:48"]
[BlackClock "0:00:07"]
[Variant "Standard"]
[EndDate "2026.07.19"]
[EndTime "14:42:22"]

1. e4 {[%clk 0:03:02]}  e5 {[%clk 0:03:04]} 2. Nf3 {[%clk 0:03:03]}  Nc6 {[%clk 0:03:05]} 3. Bb5 {[%clk 0:03:05]}  a6 {[%clk 0:03:07]}
4. Ba4 {[%clk 0:03:06]}  Nf6 {[%clk 0:03:08]} 5. d4 {[%clk 0:03:07]}  exd4 {[%clk 0:03:05]} 6. O-O {[%clk 0:03:08]}  d6 {[%clk 0:02:58]}
7. Re1 {[%clk 0:03:03]}  Be7 {[%clk 0:02:59]} 8. c3 {[%clk 0:03:04]}  dxc3 {[%clk 0:02:57]} 9. Nxc3 {[%clk 0:03:04]}  O-O {[%clk 0:02:58]}
10. Bg5 {[%clk 0:03:02]}  Bg4 {[%clk 0:02:57]} 11. h3 {[%clk 0:02:57]}  Bh5 {[%clk 0:02:44]} 12. g4 {[%clk 0:02:48]}  Bg6 {[%clk 0:02:46]}
13. Nd5 {[%clk 0:02:39]}  Nxd5 {[%clk 0:02:44]} 14. exd5 {[%clk 0:02:38]}  Bxg5 {[%clk 0:02:44]} 15. dxc6 {[%clk 0:02:39]}  b5 {[%clk 0:02:26]}
16. Bb3 {[%clk 0:02:40]}  Qf6 {[%clk 0:02:13]} 17. Qd5 {[%clk 0:02:32]}  Bh4 {[%clk 0:02:03]} 18. Re2 {[%clk 0:02:26]}  Rfe8 {[%clk 0:01:46]}
19. Rae1 {[%clk 0:02:27]}  Rxe2 {[%clk 0:01:47]} 20. Rxe2 {[%clk 0:02:28]}  h6 {[%clk 0:01:48]} 21. Kg2 {[%clk 0:02:18]}  Rb8 {[%clk 0:01:37]}
22. a3 {[%clk 0:02:16]}  a5 {[%clk 0:01:29]} 23. Nd4 {[%clk 0:01:59]}  a4 {[%clk 0:01:11]} 24. Bc2 {[%clk 0:01:40]}  Bxc2 {[%clk 0:01:07]}
25. Rxc2 {[%clk 0:01:42]}  Qf4 {[%clk 0:00:57]} 26. Re2 {[%clk 0:01:30]}  Bf6 {[%clk 0:00:54]} 27. Nf5 {[%clk 0:01:30]}  b4 {[%clk 0:00:44]}
28. axb4 {[%clk 0:01:27]}  Qxb4 {[%clk 0:00:41]} 29. Re4 {[%clk 0:01:19]}  Qxb2 {[%clk 0:00:39]} 30. Rxa4 {[%clk 0:01:19]}  Qc2 {[%clk 0:00:34]}
31. Re4 {[%clk 0:01:17]}  Rb2 {[%clk 0:00:17]} 32. Re8+ {[%clk 0:01:06]}  Kh7 {[%clk 0:00:33]} 33. Qf3 {[%clk 0:01:06]}  Rb6 {[%clk 0:00:26]}
34. Ne3 {[%clk 0:00:52]}  Qg6 {[%clk 0:00:08]} 35. Nd5 {[%clk 0:00:51]}  Rb2 {[%clk 0:00:06]} 36. Nxc7 {[%clk 0:00:47]}  Bd4 {[%clk 0:00:07]}
37. Re2 {[%clk 0:00:48]}  Rxe2 {[%clk 0:00:07]} 38. Qxe2 {[%clk 0:00:48]}  d5 {[%clk 0:00:00]} 1-0

[Event "2026 Biel Blitz Open"]
[Site "Biel, CH"]
[Date "2026.07.19"]
[Round "9"]
[White "Rohrer, Christophe"]
[Black "Materia, Matteo"]
[Result "0-1"]
[Board "27"]
[TimeControl "180+2"]
[WhiteFideId "1326546"]
[BlackFideId "45150575"]
[WhiteElo "2216"]
[BlackElo "1881"]
[WhiteTitle "FM"]
[WhiteClock "0:00:07"]
[BlackClock "0:01:16"]
[Variant "Standard"]
[EndDate "2026.07.19"]
[EndTime "14:42:18"]

1. e4 {[%clk 0:03:03]}  d6 {[%clk 0:03:00]} 2. d4 {[%clk 0:03:04]}  Nf6 {[%clk 0:03:01]} 3. Nc3 {[%clk 0:03:04]}  g6 {[%clk 0:03:03]}
4. f4 {[%clk 0:03:05]}  Bg7 {[%clk 0:03:03]} 5. Nf3 {[%clk 0:03:05]}  c5 {[%clk 0:03:00]} 6. dxc5 {[%clk 0:03:01]}  Qa5 {[%clk 0:03:01]}
7. Bd3 {[%clk 0:02:56]}  Qxc5 {[%clk 0:03:01]} 8. Qe2 {[%clk 0:02:57]}  Bg4 {[%clk 0:02:57]} 9. Be3 {[%clk 0:02:56]}  Qa5 {[%clk 0:02:56]}
10. O-O {[%clk 0:02:55]}  O-O {[%clk 0:02:55]} 11. h3 {[%clk 0:02:56]}  Bxf3 {[%clk 0:02:56]} 12. Qxf3 {[%clk 0:02:57]}  Nc6 {[%clk 0:02:57]}
13. a3 {[%clk 0:02:56]}  a6 {[%clk 0:02:57]} 14. Qf2 {[%clk 0:02:51]}  Qc7 {[%clk 0:02:51]} 15. Bb6 {[%clk 0:02:41]}  Qc8 {[%clk 0:02:48]}
16. Rad1 {[%clk 0:02:36]}  Nd7 {[%clk 0:02:49]} 17. Be3 {[%clk 0:02:36]}  b5 {[%clk 0:02:40]} 18. Kh1 {[%clk 0:02:26]}  b4 {[%clk 0:02:24]}
19. axb4 {[%clk 0:02:16]}  Nxb4 {[%clk 0:02:24]} 20. Na4 {[%clk 0:02:11]}  Nxd3 {[%clk 0:02:18]} 21. Rxd3 {[%clk 0:02:08]}  Qc6 {[%clk 0:02:16]}
22. Nc3 {[%clk 0:01:51]}  Bxc3 {[%clk 0:02:16]} 23. Rxc3 {[%clk 0:01:52]}  Qxe4 {[%clk 0:02:17]} 24. Re1 {[%clk 0:01:53]}  Qb7 {[%clk 0:02:14]}
25. Bd4 {[%clk 0:01:48]}  e5 {[%clk 0:02:07]} 26. Rb3 {[%clk 0:01:31]}  Qc6 {[%clk 0:02:00]} 27. fxe5 {[%clk 0:01:26]}  dxe5 {[%clk 0:02:01]}
28. Bxe5 {[%clk 0:01:21]}  Nxe5 {[%clk 0:02:00]} 29. Rxe5 {[%clk 0:01:22]}  Rfe8 {[%clk 0:01:55]} 30. Rc5 {[%clk 0:01:05]}  Qe4 {[%clk 0:01:49]}
31. Rc7 {[%clk 0:00:57]}  Re7 {[%clk 0:01:40]} 32. Rbb7 {[%clk 0:00:52]}  Qxb7 {[%clk 0:01:41]} 33. Rxb7 {[%clk 0:00:53]}  Rxb7 {[%clk 0:01:41]}
34. Qd4 {[%clk 0:00:52]}  Rab8 {[%clk 0:01:34]} 35. b3 {[%clk 0:00:53]}  Rb6 {[%clk 0:01:32]} 36. Kh2 {[%clk 0:00:53]}  a5 {[%clk 0:01:33]}
37. Kg3 {[%clk 0:00:54]}  Rb4 {[%clk 0:01:31]} 38. Qa7 {[%clk 0:00:54]}  R4b5 {[%clk 0:01:29]} 39. Kf4 {[%clk 0:00:50]}  Rb4+ {[%clk 0:01:25]}
40. Ke5 {[%clk 0:00:47]}  R4b5+ {[%clk 0:01:27]} 41. Kd6 {[%clk 0:00:48]}  Rd8+ {[%clk 0:01:13]} 42. Kc6 {[%clk 0:00:48]}  Rbd5 {[%clk 0:01:13]}
43. c4 {[%clk 0:00:44]}  R8d6+ {[%clk 0:01:14]} 44. Kb7 {[%clk 0:00:28]}  Rd7+ {[%clk 0:01:14]} 45. Kb6 {[%clk 0:00:21]}  Rxa7 {[%clk 0:01:15]}
46. cxd5 {[%clk 0:00:14]}  Ra8 {[%clk 0:01:14]} 47. d6 {[%clk 0:00:15]}  Rb8+ {[%clk 0:01:16]} 48. Kc7 {[%clk 0:00:06]}  Rxb3 {[%clk 0:01:17]}
49. d7 {[%clk 0:00:04]}  Rc3+ {[%clk 0:01:15]} 50. Kb6 {[%clk 0:00:07]}  Rd3 {[%clk 0:01:16]} 0-1

[Event "2026 Biel Blitz Open"]
[Site "Biel, CH"]
[Date "2026.07.19"]
[Round "9"]
[White "Dai, Wenzhi"]
[Black "Kolly, Jacques"]
[Result "0-1"]
[Board "28"]
[TimeControl "180+2"]
[WhiteFideId "8608369"]
[BlackFideId "1302183"]
[WhiteElo "1943"]
[BlackElo "2203"]
[BlackTitle "FM"]
[WhiteClock "0:00:07"]
[BlackClock "0:00:24"]
[Variant "Standard"]
[EndDate "2026.07.19"]
[EndTime "14:47:01"]

1. e4 {[%clk 0:03:03]}  e6 {[%clk 0:03:04]} 2. d4 {[%clk 0:03:04]}  d5 {[%clk 0:03:05]} 3. Nc3 {[%clk 0:03:05]}  Nf6 {[%clk 0:03:06]}
4. Bg5 {[%clk 0:03:06]}  Bb4 {[%clk 0:03:08]} 5. e5 {[%clk 0:03:07]}  h6 {[%clk 0:03:09]} 6. Bd2 {[%clk 0:03:08]}  Bxc3 {[%clk 0:03:01]}
7. bxc3 {[%clk 0:03:08]}  Ne4 {[%clk 0:03:02]} 8. Qg4 {[%clk 0:03:09]}  g6 {[%clk 0:03:03]} 9. Bd3 {[%clk 0:03:07]}  Nxd2 {[%clk 0:03:04]}
10. Kxd2 {[%clk 0:03:07]}  c5 {[%clk 0:03:06]} 11. Nf3 {[%clk 0:03:00]}  Nc6 {[%clk 0:03:07]} 12. dxc5 {[%clk 0:02:39]}  Qa5 {[%clk 0:03:04]}
13. Qf4 {[%clk 0:02:20]}  Qxc5 {[%clk 0:02:59]} 14. Qe3 {[%clk 0:02:21]}  Qa5 {[%clk 0:02:51]} 15. a4 {[%clk 0:02:20]}  Qc7 {[%clk 0:02:42]}
16. Rhe1 {[%clk 0:02:13]}  Na5 {[%clk 0:02:34]} 17. Nd4 {[%clk 0:02:13]}  Bd7 {[%clk 0:02:31]} 18. f4 {[%clk 0:02:04]}  a6 {[%clk 0:02:18]}
19. Reb1 {[%clk 0:01:52]}  Rc8 {[%clk 0:02:19]} 20. Be2 {[%clk 0:01:53]}  O-O {[%clk 0:02:08]} 21. h4 {[%clk 0:01:40]}  Kg7 {[%clk 0:01:57]}
22. g4 {[%clk 0:01:39]}  f6 {[%clk 0:01:56]} 23. exf6+ {[%clk 0:01:20]}  Rxf6 {[%clk 0:01:57]} 24. Rf1 {[%clk 0:01:02]}  Rcf8 {[%clk 0:01:40]}
25. g5 {[%clk 0:00:48]}  Rxf4 {[%clk 0:01:35]} 26. Nxe6+ {[%clk 0:00:24]}  Bxe6 {[%clk 0:01:33]} 27. gxh6+ {[%clk 0:00:05]}  Kh7 {[%clk 0:01:20]}
28. Qxe6 {[%clk 0:00:05]}  Rxf1 {[%clk 0:01:15]} 29. Rxf1 {[%clk 0:00:06]}  Rxf1 {[%clk 0:01:16]} 30. Bxf1 {[%clk 0:00:07]}  Qf4+ {[%clk 0:01:10]}
31. Ke2 {[%clk 0:00:08]}  Qxh4 {[%clk 0:00:38]} 32. Qxd5 {[%clk 0:00:04]}  Nc6 {[%clk 0:00:35]} 33. Qf7+ {[%clk 0:00:04]}  Kxh6 {[%clk 0:00:35]}
34. Qf8+ {[%clk 0:00:06]}  Kh7 {[%clk 0:00:36]} 35. Qf7+ {[%clk 0:00:07]}  Kh6 {[%clk 0:00:37]} 36. Qf8+ {[%clk 0:00:08]}  Kg5 {[%clk 0:00:30]}
37. Qc5+ {[%clk 0:00:09]}  Kf6 {[%clk 0:00:25]} 38. Qd6+ {[%clk 0:00:08]}  Kf7 {[%clk 0:00:23]} 39. Qd7+ {[%clk 0:00:07]}  Qe7+ {[%clk 0:00:24]}
40. Qxe7+ {[%clk 0:00:08]}  Kxe7 {[%clk 0:00:26]} 41. Bg2 {[%clk 0:00:09]}  Kd6 {[%clk 0:00:25]} 42. Kd3 {[%clk 0:00:09]}  Kc5 {[%clk 0:00:24]}
43. Be4 {[%clk 0:00:03]}  g5 {[%clk 0:00:25]} 44. Bg2 {[%clk 0:00:03]}  b6 {[%clk 0:00:21]} 45. Bh1 {[%clk 0:00:04]}  Ne5+ {[%clk 0:00:21]}
46. Ke4 {[%clk 0:00:05]}  Nc4 {[%clk 0:00:21]} 47. Kf5 {[%clk 0:00:05]}  Ne3 {[%clk 0:00:20]} 48. Kxg5 {[%clk 0:00:05]}  Nxc2 {[%clk 0:00:22]}
49. Kf6 {[%clk 0:00:04]}  Kc4 {[%clk 0:00:21]} 50. Bb7 {[%clk 0:00:03]}  a5 {[%clk 0:00:23]} 51. Ke6 {[%clk 0:00:04]}  Kxc3 {[%clk 0:00:23]}
52. Kd6 {[%clk 0:00:05]}  Kb4 {[%clk 0:00:22]} 53. Bc6 {[%clk 0:00:06]}  Nd4 {[%clk 0:00:23]} 54. Bd7 {[%clk 0:00:07]}  b5 {[%clk 0:00:24]} 0-1

[Event "2026 Biel Blitz Open"]
[Site "Biel, CH"]
[Date "2026.07.19"]
[Round "9"]
[White "Maruntis, Patrik-Robert"]
[Black "Pinelli, Gian"]
[Result "1-0"]
[Board "29"]
[TimeControl "180+2"]
[WhiteFideId "1259997"]
[BlackFideId "1348710"]
[WhiteElo "2167"]
[BlackElo "1751"]
[WhiteClock "0:00:33"]
[BlackClock "0:00:46"]
[Variant "Standard"]
[EndDate "2026.07.19"]
[EndTime "14:47:05"]

1. e4 {[%clk 0:03:01]}  c6 {[%clk 0:03:04]} 2. d4 {[%clk 0:03:01]}  d5 {[%clk 0:03:05]} 3. e5 {[%clk 0:03:02]}  c5 {[%clk 0:03:06]}
4. dxc5 {[%clk 0:03:00]}  e6 {[%clk 0:03:07]} 5. Be3 {[%clk 0:02:55]}  Nd7 {[%clk 0:03:08]} 6. Bb5 {[%clk 0:02:56]}  Qc7 {[%clk 0:03:06]}
7. Nf3 {[%clk 0:02:48]}  Bxc5 {[%clk 0:03:03]} 8. Bxc5 {[%clk 0:02:42]}  Qxc5 {[%clk 0:03:04]} 9. Nc3 {[%clk 0:02:40]}  a6 {[%clk 0:03:05]}
10. Bxd7+ {[%clk 0:02:40]}  Bxd7 {[%clk 0:03:06]} 11. Qd4 {[%clk 0:02:41]}  Qxd4 {[%clk 0:03:03]} 12. Nxd4 {[%clk 0:02:41]}  Ne7 {[%clk 0:03:04]}
13. O-O-O {[%clk 0:02:41]}  Ng6 {[%clk 0:02:58]} 14. Rhe1 {[%clk 0:02:34]}  b5 {[%clk 0:02:59]} 15. g3 {[%clk 0:02:30]}  b4 {[%clk 0:02:55]}
16. Nb1 {[%clk 0:02:31]}  Rc8 {[%clk 0:02:52]} 17. f4 {[%clk 0:02:31]}  Ne7 {[%clk 0:02:52]} 18. Re3 {[%clk 0:02:26]}  a5 {[%clk 0:02:48]}
19. c3 {[%clk 0:02:26]}  bxc3 {[%clk 0:02:48]} 20. Rxc3 {[%clk 0:02:27]}  Rxc3+ {[%clk 0:02:48]} 21. Nxc3 {[%clk 0:02:28]}  O-O {[%clk 0:02:47]}
22. b3 {[%clk 0:02:25]}  Rc8 {[%clk 0:02:47]} 23. Kb2 {[%clk 0:02:26]}  Nc6 {[%clk 0:02:46]} 24. Nxc6 {[%clk 0:02:25]}  Rxc6 {[%clk 0:02:47]}
25. Ne2 {[%clk 0:02:26]}  Kf8 {[%clk 0:02:38]} 26. Nd4 {[%clk 0:02:27]}  Rc5 {[%clk 0:02:36]} 27. Rc1 {[%clk 0:02:23]}  Rxc1 {[%clk 0:02:36]}
28. Kxc1 {[%clk 0:02:23]}  Ke7 {[%clk 0:02:37]} 29. Kb2 {[%clk 0:02:16]}  f6 {[%clk 0:02:38]} 30. Ka3 {[%clk 0:02:03]}  Kd8 {[%clk 0:02:36]}
31. b4 {[%clk 0:02:04]}  axb4+ {[%clk 0:02:36]} 32. Kxb4 {[%clk 0:02:05]}  Kc7 {[%clk 0:02:37]} 33. Kc5 {[%clk 0:02:06]}  fxe5 {[%clk 0:02:32]}
34. fxe5 {[%clk 0:02:06]}  h6 {[%clk 0:02:26]} 35. h4 {[%clk 0:02:00]}  Bc8 {[%clk 0:02:22]} 36. g4 {[%clk 0:01:26]}  Bd7 {[%clk 0:02:19]}
37. g5 {[%clk 0:01:21]}  hxg5 {[%clk 0:02:17]} 38. hxg5 {[%clk 0:01:22]}  Bc8 {[%clk 0:02:18]} 39. Ne2 {[%clk 0:01:22]}  Bd7 {[%clk 0:02:04]}
40. Nf4 {[%clk 0:01:23]}  Bc8 {[%clk 0:01:33]} 41. Nh5 {[%clk 0:01:19]}  Kd7 {[%clk 0:01:40]} 42. Nxg7 {[%clk 0:01:13]}  Ke7 {[%clk 0:01:40]}
43. Nh5 {[%clk 0:01:14]}  Kf7 {[%clk 0:01:38]} 44. Nf4 {[%clk 0:01:01]}  Kg7 {[%clk 0:01:02]} 45. a4 {[%clk 0:01:00]}  Kf7 {[%clk 0:01:03]}
46. a5 {[%clk 0:01:01]}  Ke7 {[%clk 0:01:02]} 47. g6 {[%clk 0:00:59]}  Bd7 {[%clk 0:00:59]} 48. a6 {[%clk 0:01:00]}  Bc8 {[%clk 0:00:59]}
49. a7 {[%clk 0:01:00]}  Bb7 {[%clk 0:01:00]} 50. Ne2 {[%clk 0:00:35]}  Kf8 {[%clk 0:00:53]} 51. Kd6 {[%clk 0:00:31]}  Kg7 {[%clk 0:00:53]}
52. Kxe6 {[%clk 0:00:32]}  Kxg6 {[%clk 0:00:53]} 53. Nd4 {[%clk 0:00:33]}  Kg7 {[%clk 0:00:52]} 54. Kd7 {[%clk 0:00:34]}  Kf8 {[%clk 0:00:51]}
55. e6 {[%clk 0:00:34]}  Kg7 {[%clk 0:00:46]} 56. Kc7 {[%clk 0:00:32]}  Ba8 {[%clk 0:00:46]} 57. Kb8 {[%clk 0:00:33]} 1-0

[Event "2026 Biel Blitz Open"]
[Site "Biel, CH"]
[Date "2026.07.19"]
[Round "9"]
[White "Osmani, Xhevdet"]
[Black "Harish, Neeraj"]
[Result "0-1"]
[Board "33"]
[TimeControl "180+2"]
[WhiteFideId "22104569"]
[BlackFideId "30958130"]
[WhiteElo "1959"]
[BlackElo "1920"]
[BlackTitle "CM"]
[WhiteClock "0:00:06"]
[BlackClock "0:00:08"]
[Variant "Standard"]
[EndDate "2026.07.19"]
[EndTime "14:39:05"]

1. d4 {[%clk 0:03:03]}  Nf6 {[%clk 0:03:03]} 2. Bf4 {[%clk 0:03:05]}  g6 {[%clk 0:03:02]} 3. e3 {[%clk 0:03:06]}  Bg7 {[%clk 0:03:03]}
4. Nf3 {[%clk 0:03:07]}  O-O {[%clk 0:03:04]} 5. Be2 {[%clk 0:03:08]}  c5 {[%clk 0:03:05]} 6. c3 {[%clk 0:03:09]}  d6 {[%clk 0:03:03]}
7. h3 {[%clk 0:03:10]}  Qb6 {[%clk 0:03:04]} 8. Qb3 {[%clk 0:03:10]}  Nc6 {[%clk 0:03:01]} 9. Nbd2 {[%clk 0:03:11]}  Be6 {[%clk 0:03:00]}
10. Qc2 {[%clk 0:03:10]}  Rac8 {[%clk 0:02:56]} 11. dxc5 {[%clk 0:03:08]}  Qxc5 {[%clk 0:02:55]} 12. O-O {[%clk 0:03:05]}  Qb6 {[%clk 0:02:32]}
13. Rfd1 {[%clk 0:02:59]}  Nd7 {[%clk 0:02:32]} 14. Rac1 {[%clk 0:02:42]}  Nc5 {[%clk 0:01:58]} 15. Nd4 {[%clk 0:02:34]}  Bd7 {[%clk 0:01:47]}
16. Nc4 {[%clk 0:02:28]}  Qc7 {[%clk 0:01:40]} 17. Nb5 {[%clk 0:02:24]}  Qd8 {[%clk 0:01:41]} 18. Nd4 {[%clk 0:02:24]}  a6 {[%clk 0:01:28]}
19. Bg3 {[%clk 0:02:21]}  b5 {[%clk 0:01:20]} 20. Nxc6 {[%clk 0:02:19]}  Bxc6 {[%clk 0:01:17]} 21. Nd2 {[%clk 0:02:20]}  Qb6 {[%clk 0:01:16]}
22. Bf3 {[%clk 0:02:19]}  a5 {[%clk 0:01:13]} 23. c4 {[%clk 0:02:11]}  Bxf3 {[%clk 0:00:49]} 24. gxf3 {[%clk 0:01:52]}  Na4 {[%clk 0:00:43]}
25. b3 {[%clk 0:01:51]}  Nc3 {[%clk 0:00:24]} 26. Re1 {[%clk 0:01:51]}  b4 {[%clk 0:00:23]} 27. Kg2 {[%clk 0:01:38]}  h5 {[%clk 0:00:22]}
28. Ne4 {[%clk 0:01:25]}  d5 {[%clk 0:00:20]} 29. Nxc3 {[%clk 0:01:23]}  Bxc3 {[%clk 0:00:21]} 30. Red1 {[%clk 0:01:14]}  dxc4 {[%clk 0:00:22]}
31. bxc4 {[%clk 0:01:15]}  Rxc4 {[%clk 0:00:23]} 32. Rd7 {[%clk 0:01:08]}  Rfc8 {[%clk 0:00:17]} 33. Qd3 {[%clk 0:01:07]}  h4 {[%clk 0:00:15]}
34. Bf4 {[%clk 0:00:59]}  Qf6 {[%clk 0:00:14]} 35. Rd5 {[%clk 0:00:54]}  a4 {[%clk 0:00:13]} 36. Bg5 {[%clk 0:00:46]}  Qc6 {[%clk 0:00:13]}
37. Bxe7 {[%clk 0:00:41]}  b3 {[%clk 0:00:10]} 38. axb3 {[%clk 0:00:36]}  axb3 {[%clk 0:00:11]} 39. e4 {[%clk 0:00:30]}  b2 {[%clk 0:00:12]}
40. Rb1 {[%clk 0:00:31]}  Qe6 {[%clk 0:00:09]} 41. Ba3 {[%clk 0:00:27]}  Qb6 {[%clk 0:00:06]} 42. Rd6 {[%clk 0:00:17]}  Qb7 {[%clk 0:00:07]}
43. Qe2 {[%clk 0:00:06]}  Bg7 {[%clk 0:00:08]} 0-1

[Event "2026 Biel Blitz Open"]
[Site "Biel, CH"]
[Date "2026.07.19"]
[Round "9"]
[White "Trubini, Timon"]
[Black "Kelecevic, Nedeljko"]
[Result "0-1"]
[Board "34"]
[TimeControl "180+2"]
[WhiteFideId "1347799"]
[BlackFideId "14400537"]
[WhiteElo "1788"]
[BlackElo "2150"]
[BlackTitle "IM"]
[WhiteClock "0:00:26"]
[BlackClock "0:00:46"]
[Variant "Standard"]
[EndDate "2026.07.19"]
[EndTime "14:42:36"]

1. e4 {[%clk 0:03:02]}  e6 {[%clk 0:03:01]} 2. d4 {[%clk 0:03:04]}  d5 {[%clk 0:03:02]} 3. e5 {[%clk 0:03:06]}  c5 {[%clk 0:03:03]}
4. c3 {[%clk 0:03:07]}  Nc6 {[%clk 0:03:04]} 5. Nf3 {[%clk 0:03:08]}  Bd7 {[%clk 0:03:06]} 6. Be2 {[%clk 0:03:09]}  f6 {[%clk 0:03:04]}
7. O-O {[%clk 0:03:06]}  fxe5 {[%clk 0:03:05]} 8. dxe5 {[%clk 0:03:07]}  Nh6 {[%clk 0:03:02]} 9. Bxh6 {[%clk 0:02:47]}  gxh6 {[%clk 0:03:03]}
10. Re1 {[%clk 0:02:48]}  Bg7 {[%clk 0:02:53]} 11. Bf1 {[%clk 0:02:48]}  O-O {[%clk 0:02:45]} 12. Na3 {[%clk 0:02:46]}  a6 {[%clk 0:02:44]}
13. Nc2 {[%clk 0:02:46]}  Qc7 {[%clk 0:02:45]} 14. Qe2 {[%clk 0:02:39]}  Be8 {[%clk 0:02:35]} 15. h3 {[%clk 0:02:25]}  Bh5 {[%clk 0:02:32]}
16. g4 {[%clk 0:02:24]}  Bg6 {[%clk 0:02:32]} 17. Bg2 {[%clk 0:02:07]}  Be4 {[%clk 0:02:22]} 18. Nh4 {[%clk 0:01:49]}  Bxc2 {[%clk 0:01:57]}
19. Qxc2 {[%clk 0:01:46]}  Qe7 {[%clk 0:01:52]} 20. Nf3 {[%clk 0:01:42]}  Rf7 {[%clk 0:01:53]} 21. Re3 {[%clk 0:01:30]}  Raf8 {[%clk 0:01:53]}
22. Rae1 {[%clk 0:01:29]}  d4 {[%clk 0:01:50]} 23. cxd4 {[%clk 0:01:28]}  cxd4 {[%clk 0:01:50]} 24. Rd3 {[%clk 0:01:16]}  Nb4 {[%clk 0:01:50]}
25. Qb3 {[%clk 0:01:12]}  Nxd3 {[%clk 0:01:50]} 26. Qxd3 {[%clk 0:01:13]}  Qb4 {[%clk 0:01:38]} 27. Re2 {[%clk 0:01:09]}  Qb5 {[%clk 0:01:34]}
28. Qxb5 {[%clk 0:01:06]}  axb5 {[%clk 0:01:35]} 29. Nxd4 {[%clk 0:01:07]}  Re7 {[%clk 0:01:24]} 30. Nxb5 {[%clk 0:01:06]}  Rd8 {[%clk 0:01:25]}
31. Nd6 {[%clk 0:01:03]}  Bxe5 {[%clk 0:01:21]} 32. Nxb7 {[%clk 0:01:04]}  Rd1+ {[%clk 0:01:22]} 33. Bf1 {[%clk 0:01:02]}  Rxb7 {[%clk 0:01:04]}
34. Rxe5 {[%clk 0:01:02]}  Rxb2 {[%clk 0:01:05]} 35. Kg2 {[%clk 0:01:00]}  Rdd2 {[%clk 0:01:05]} 36. Bc4 {[%clk 0:00:58]}  Rxf2+ {[%clk 0:01:06]}
37. Kg3 {[%clk 0:00:59]}  Kg7 {[%clk 0:01:00]} 38. Rxe6 {[%clk 0:00:57]}  Rg2+ {[%clk 0:00:59]} 39. Kh4 {[%clk 0:00:58]}  Rh2 {[%clk 0:00:57]}
40. Re7+ {[%clk 0:00:55]}  Kh8 {[%clk 0:00:46]} 41. Bb3 {[%clk 0:00:41]}  Rbe2 {[%clk 0:00:43]} 42. Rxe2 {[%clk 0:00:24]}  Rxe2 {[%clk 0:00:44]}
43. Kg3 {[%clk 0:00:26]}  Kg7 {[%clk 0:00:45]} 44. Kh4 {[%clk 0:00:26]}  Re3 {[%clk 0:00:45]} 45. Be6 {[%clk 0:00:26]}  Rxe6 {[%clk 0:00:46]} 0-1

[Event "2026 Biel Blitz Open"]
[Site "Biel, CH"]
[Date "2026.07.19"]
[Round "9"]
[White "Huang,Hsuan-Chen"]
[Black "Langner, Robin"]
[Result "1-0"]
[Board "35"]
[TimeControl "180+2"]
[WhiteFideId "16303121"]
[BlackFideId "34606190"]
[WhiteElo "1833"]
[BlackElo "2059"]
[WhiteClock "0:00:11"]
[BlackClock "0:00:03"]
[Variant "Standard"]
[EndDate "2026.07.19"]
[EndTime "14:39:59"]

1. d4 {[%clk 0:03:02]}  Nf6 {[%clk 0:03:02]} 2. Nf3 {[%clk 0:03:03]}  g6 {[%clk 0:03:02]} 3. Nbd2 {[%clk 0:03:03]}  c5 {[%clk 0:02:59]}
4. e3 {[%clk 0:03:04]}  cxd4 {[%clk 0:03:00]} 5. exd4 {[%clk 0:03:05]}  Bg7 {[%clk 0:03:01]} 6. Bd3 {[%clk 0:03:05]}  O-O {[%clk 0:02:58]}
7. O-O {[%clk 0:03:05]}  Nc6 {[%clk 0:02:55]} 8. c3 {[%clk 0:03:05]}  d6 {[%clk 0:02:54]} 9. Re1 {[%clk 0:03:05]}  e5 {[%clk 0:02:49]}
10. dxe5 {[%clk 0:02:43]}  dxe5 {[%clk 0:02:48]} 11. Ne4 {[%clk 0:02:43]}  Nxe4 {[%clk 0:02:44]} 12. Bxe4 {[%clk 0:02:43]}  Qc7 {[%clk 0:02:42]}
13. Qe2 {[%clk 0:02:34]}  Re8 {[%clk 0:02:35]} 14. Be3 {[%clk 0:02:20]}  Be6 {[%clk 0:02:30]} 15. Ng5 {[%clk 0:02:04]}  Rad8 {[%clk 0:02:12]}
16. Nxe6 {[%clk 0:01:47]}  Rxe6 {[%clk 0:02:13]} 17. Qc4 {[%clk 0:01:41]}  Red6 {[%clk 0:01:54]} 18. a4 {[%clk 0:01:39]}  Qd7 {[%clk 0:01:23]}
19. Bf3 {[%clk 0:01:32]}  Kh8 {[%clk 0:00:48]} 20. g3 {[%clk 0:01:22]}  f5 {[%clk 0:00:32]} 21. Bg5 {[%clk 0:01:13]}  Re8 {[%clk 0:00:28]}
22. Rad1 {[%clk 0:01:06]}  e4 {[%clk 0:00:28]} 23. Rxd6 {[%clk 0:01:07]}  Qxd6 {[%clk 0:00:29]} 24. Rd1 {[%clk 0:01:02]}  Qc7 {[%clk 0:00:10]}
25. Bg2 {[%clk 0:01:01]}  h6 {[%clk 0:00:09]} 26. Bf4 {[%clk 0:01:01]}  Qe7 {[%clk 0:00:10]} 27. Rd6 {[%clk 0:00:58]}  Kh7 {[%clk 0:00:09]}
28. Qd5 {[%clk 0:00:53]}  Rd8 {[%clk 0:00:07]} 29. Bf1 {[%clk 0:00:46]}  Rxd6 {[%clk 0:00:07]} 30. Qxd6 {[%clk 0:00:44]}  Qxd6 {[%clk 0:00:07]}
31. Bxd6 {[%clk 0:00:45]}  Ne5 {[%clk 0:00:08]} 32. Bxe5 {[%clk 0:00:38]}  Bxe5 {[%clk 0:00:09]} 33. Bc4 {[%clk 0:00:37]}  Kg7 {[%clk 0:00:10]}
34. Kf1 {[%clk 0:00:36]}  Kf6 {[%clk 0:00:11]} 35. Ke2 {[%clk 0:00:38]}  g5 {[%clk 0:00:12]} 36. Kd2 {[%clk 0:00:35]}  Ke7 {[%clk 0:00:13]}
37. Bd5 {[%clk 0:00:35]}  b6 {[%clk 0:00:14]} 38. b3 {[%clk 0:00:36]}  Kd6 {[%clk 0:00:15]} 39. Bf7 {[%clk 0:00:35]}  Bf6 {[%clk 0:00:10]}
40. c4 {[%clk 0:00:28]}  Ke5 {[%clk 0:00:04]} 41. Ke2 {[%clk 0:00:20]}  a5 {[%clk 0:00:05]} 42. Bg8 {[%clk 0:00:20]}  Be7 {[%clk 0:00:06]}
43. Bd5 {[%clk 0:00:20]}  Bc5 {[%clk 0:00:07]} 44. f3 {[%clk 0:00:19]}  exf3+ {[%clk 0:00:07]} 45. Kxf3 {[%clk 0:00:19]}  Bd6 {[%clk 0:00:07]}
46. Ke3 {[%clk 0:00:19]}  Bc5+ {[%clk 0:00:08]} 47. Kd3 {[%clk 0:00:19]}  Bg1 {[%clk 0:00:09]} 48. h3 {[%clk 0:00:19]}  Bf2 {[%clk 0:00:06]}
49. g4 {[%clk 0:00:20]}  f4 {[%clk 0:00:07]} 50. Bf3 {[%clk 0:00:20]}  Bc5 {[%clk 0:00:07]} 51. Bd5 {[%clk 0:00:19]}  Ba3 {[%clk 0:00:08]}
52. Bb7 {[%clk 0:00:20]}  Bb2 {[%clk 0:00:08]} 53. Bf3 {[%clk 0:00:18]}  Ba1 {[%clk 0:00:07]} 54. b4 {[%clk 0:00:12]}  axb4 {[%clk 0:00:08]}
55. c5 {[%clk 0:00:14]}  Bd4 {[%clk 0:00:05]} 56. c6 {[%clk 0:00:12]}  b3 {[%clk 0:00:03]} 57. c7 {[%clk 0:00:10]}  b2 {[%clk 0:00:03]}
58. Kc2 {[%clk 0:00:11]} 1-0